Cogmind - Beta 10.2 *** ADVENTURER MODE // 2022.02.17 @ 18:53:41 Player: woegarden Result: Destroyed by Y-45 Defender with Beam Rifle Performance ------------- Evolutions (1) 500 Regions Visited (3) 600 Robots Destroyed (11) 55 Value Destroyed (121) 121 Prototype IDs (0) 0 Alien Tech Used (0) 0 Bonus (0) 0 TOTAL SCORE: 1276 Bonus ------- None Cogmind --------- Core Integrity 0/400 Matter 286/300 Energy 188/500 System Corruption 3% Temperature Cool (9) Movement Core (300) Ox5 Location -9/Materials Parts ------- > --- POWER (1) -------- (None) > --- PROPULSION (2) --- (None) > --- UTILITY (4) ------ Small Storage Unit High-capacity Battery Field Recycling Unit > --- WEAPON (2) ------- (None) > --- INVENTORY (6) ---- Improved Terrain Scanner EM Shotgun Particle Cannon Welding Torch Peak State ------------ > --- POWER ------------ Light Ion Engine > --- PROPULSION ------- Flight Unit Flight Unit > --- UTILITY ---------- Small Storage Unit Improved Terrain Scanner > --- WEAPON ----------- Medium Laser Assault Rifle > --- INVENTORY -------- Hover Unit [Rating: 8] Favorites ----------- Power Light Ion Engine Engine Light Ion Engine Propulsion Aluminum Leg Leg Aluminum Leg Hover Unit Hover Unit Flight Unit Flight Unit Utility Small Storage Unit Device Weight Redist. System Storage Small Storage Unit Weapon Light Assault Rifle Energy Gun Medium Laser Ballistic Gun Light Assault Rifle Build | -11 -10 -10 -9 ------- Run | Scr Mat Min Mat Slots Evolved 2 | . . . 2 Power . | . . . . Propulsion . | . . . . Utility 2 | . . . 2 Weapon . | . . . . Parts Attached 17 | 5 5 2 5 Power 1 | . 1 . . Engine 1 | . 1 . . Core . | . . . . Reactor . | . . . . Propulsion 5 | 2 3 . . Treads . | . . . . Leg 2 | 2 . . . Wheel . | . . . . Hover 1 | . 1 . . Flight 2 | . 2 . . Utility 7 | 1 1 1 4 Device 4 | 1 . 1 2 Storage 3 | . 1 . 2 Processor . | . . . . Hackware . | . . . . Protection . | . . . . Artifact . | . . . . Weapon 4 | 2 . 1 1 Energy Gun 1 | 1 . . . Energy Cannon . | . . . . Ballistic Gun 3 | 1 . 1 1 Ballistic Cannon . | . . . . Launcher . | . . . . Special Weapon . | . . . . Impact Weapon . | . . . . Slashing Weapon . | . . . . Piercing Weapon . | . . . . Special Melee Weapon . | . . . . Unidentified Prototypes . | . . . . Parts Lost 6 | . . 3 3 Power 1 | . . 1 . Propulsion 1 | . . 1 . Utility 1 | . . . 1 Weapon 3 | . . 1 2 Highest Loss Streak 3 | . . 2 3 Average Slot Usage (%) 62 | . 75 66 51 Engine 6 | . 3 11 . Leg 3 | . 18 . . Hover 5 | . 2 11 . Flight 1 | . 5 . . Device 16 | . 14 14 22 Storage 13 | . 2 14 19 Energy Gun 2 | . 14 . . Ballistic Gun 12 | . 14 14 9 Naked Turns . | . . . . Heaviest Build 17 | 5 12 11 17 Greatest Support 20 | 20 20 12 9 Greatest Overweight (x) 5 | . 1 1 5 Average Overweight (x) . | . . . 1 Largest Inventory Capacity 6 | 4 6 6 6 Average Capacity 5 | 4 4 6 6 Most Carried 6 | 4 4 5 6 Average Carried 3 | 2 1 4 4 Final Capacity 6 | 4 6 6 6 Final Carried 5 | 2 3 5 4 Class Distribution -------------------- 100% | Mutant Dominant Class ---------------- Mutant | -10/Materials Mutant | -10/Mines Mutant | -9/Materials Resources | -11 -10 -10 -9 ----------- Run | Scr Mat Min Mat Matter Collected 358 | 267 24 67 . Remotely . | . . . . Salvage Created 237 | 142 41 54 . Parts 15 | 5 4 6 . Haulers Intercepted . | . . . . Recyclers Shooed 2 | 1 . 1 . Parts Field Recycled 2 | . . . 2 Retrieved Matter 15 | . . . 15 Parts Self-Destructed . | . . . . Prevented . | . . . . Kills | -11 -10 -10 -9 ------- Run | Scr Mat Min Mat Combat Hostiles Destroyed 7 | . 3 4 . Guns 6 | . 3 3 . Classes Destroyed 4 | 2 1 1 . Tunneler 3 | 3 . . . Recycler 1 | 1 . . . Swarmer 6 | . 3 3 . Grunt 1 | . . 1 . Best Kill Streak 4 | 4 3 3 . Combat Bots Only 3 | . 3 3 . Max Kills in Single Turn 1 | 1 1 1 . Gunslinging . | . . . . Exploded . | . . . . Melee . | . . . . Uniques/NPCs Destroyed . | . . . . Combat | -11 -10 -10 -9 -------- Run | Scr Mat Min Mat Damage Taken 1077 | . 135 237 705 Core 507 | . 23 78 406 Absorbed by Shields . | . . . . Core Remaining (%) 79 | 100 . 59 . Volleys Fired 32 | 6 8 12 6 Largest 2 | 2 2 2 1 Hottest 70 | 70 70 70 20 Shots Fired 50 | 12 16 16 6 Gun 50 | 12 16 16 6 Cannon . | . . . . Launcher . | . . . . Special . | . . . . Kinetic 32 | 6 8 12 6 Thermal 18 | 6 8 4 . Explosive . | . . . . Electromagnetic . | . . . . Robot Hit Streak 14 | 9 14 8 2 Robot Miss Streak 2 | 1 2 1 1 Penetration Max . | . . . . Secondary Targets 2 | . 1 1 . Max Gunslinging Chain 1 | . 1 1 . Shots Hit Robots 36 | 11 11 10 4 Core Hits 15 | 4 3 6 2 Critical Hits . | . . . . Critical Kills . | . . . . Critical Parts Destroyed . | . . . . Melee Attacks . | . . . . Impact . | . . . . Slashing . | . . . . Piercing . | . . . . Sneak Attacks . | . . . . Combat Hostiles . | . . . . Follow-up Attacks . | . . . . Damage Inflicted 450 | 135 127 141 47 Guns 410 | 135 127 113 35 Cannons . | . . . . Explosions . | . . . . Melee . | . . . . Ramming 40 | . . 28 12 Kinetic 230 | 71 62 62 35 Thermal 180 | 64 65 51 . Explosive . | . . . . Electromagnetic . | . . . . Impact . | . . . . Slashing . | . . . . Piercing . | . . . . Highest Corruption 3 | . . . 3 Average Corruption 3 | . . . 3 Corruption Purged . | . . . . Effects 1 | . . . 1 Energy Discharges 1 | . . . 1 Overload Shots . | . . . . Overflow Damage . | . . . . Projectiles . | . . . . Explosions . | . . . . Melee . | . . . . Knockbacks . | . . . . Impact . | . . . . Kinetic . | . . . . Secondary . | . . . . Self-Inflicted Damage 18 | . . 13 5 Shots . | . . . . Rammed 12 | . . 7 5 Targets Rammed 12 | . . 7 5 Kicked . | . . . . Crushed . | . . . . Highest Temperature 48 | . . 48 1 Average Temperature 13 | . . 15 1 Received Heat Transfer 366 | . 30 120 216 Siege Activations . | . . . . Robots Corrupted . | . . . . Combat Hostiles . | . . . . Parts Fried . | . . . . Impact Corruptions . | . . . . Robots Melted . | . . . . Combat Hostiles . | . . . . Parts Melted 1 | . . 1 . Heat Transferred 518 | 185 185 148 . Parts Sabotaged . | . . . . Parts Stolen . | . . . . Parts Stripped . | . . . . Power Chain Reactions . | . . . . Missiles Intercepted . | . . . . Alert | -11 -10 -10 -9 ------- Run | Scr Mat Min Mat Peak Influence 121 | 20 81 121 69 Initial 39 | . 11 26 39 Average 60 | 7 42 91 42 Maximum Alert Level . | . . . . Low Security (%) 100 | 100 100 100 100 Level 1 . | . . . . Level 2 . | . . . . Level 3 . | . . . . Level 4 . | . . . . Level 5 . | . . . . High Security . | . . . . Max Security . | . . . . Squads Dispatched 3 | . 2 . 1 Investigation 2 | . 2 . . Extermination . | . . . . Reinforcement 1 | . . . 1 Assault . | . . . . Garrison . | . . . . Intercept . | . . . . Construction Impeded . | . . . . Haulers Reinforced . | . . . . Stealth | -11 -10 -10 -9 --------- Run | Scr Mat Min Mat Distress Signals . | . . . . Communications Jammed . | . . . . Distress Signals . | . . . . Times Spotted 24 | . 5 13 6 Peak Tracking Total 7 | . 3 7 6 Tactical Retreats 4 | . . 4 . Traps | -11 -10 -10 -9 ------- Run | Scr Mat Min Mat Traps Triggered 2 | . 2 . . Indirectly . | . . . . Trap Hack Attempts . | . . . . Triggered . | . . . . Disarmed . | . . . . Reprogrammed . | . . . . Reused . | . . . . Traps Extracted . | . . . . Installed . | . . . . Triggered . | . . . . Machines | -11 -10 -10 -9 ---------- Run | Scr Mat Min Mat Machines Disabled . | . . . . Max in Single Turn . | . . . . Machines Sabotaged . | . . . . Garrisons Compromised . | . . . . Overloaded Fab Kills . | . . . . Fab Network Shutdowns . | . . . . Hacking | -11 -10 -10 -9 --------- Run | Scr Mat Min Mat Machines Accessed . | . . . . Terminals . | . . . . Fabricators . | . . . . Repair Stations . | . . . . Recycling Units . | . . . . Scanalyzers . | . . . . Garrison Access . | . . . . Total Hacks . | . . . . Successful . | . . . . Failed . | . . . . Catastrophic . | . . . . Database Lockouts . | . . . . Manual . | . . . . Terminals . | . . . . Fabricators . | . . . . Repair Stations . | . . . . Recycling Units . | . . . . Scanalyzers . | . . . . Garrison Access . | . . . . Terminal Hacks . | . . . . Fabricator Hacks . | . . . . Repair Station Hacks . | . . . . Recycling Unit Hacks . | . . . . Scanalyzer . | . . . . Garrison Access Hacks . | . . . . Unauthorized Hacks . | . . . . Terminals . | . . . . Fabricators . | . . . . Repair Stations . | . . . . Recycling Units . | . . . . Scanalyzers . | . . . . Garrison Access . | . . . . Data Cores Recovered . | . . . . Used . | . . . . Hacking Detections . | . . . . Full Trace Events . | . . . . Feedback Events . | . . . . Feedback Blocked . | . . . . Robot Schematics Acquired . | . . . . Robots Built . | . . . . Matter . | . . . . Time . | . . . . Total Robot Build Rating . | . . . . Part Schematics Acquired . | . . . . Parts Built . | . . . . Matter . | . . . . Time . | . . . . Total Part Build Rating . | . . . . Parts Repaired . | . . . . Time . | . . . . Parts Recycled . | . . . . Recycled Matter . | . . . . Retrieved Matter . | . . . . Retrieved Components . | . . . . Parts Scanalyzed . | . . . . Part Schematics Acquired . | . . . . Parts Damaged . | . . . . Bothacking | -11 -10 -10 -9 ------------ Run | Scr Mat Min Mat Used RIF Installer . | . . . . Robots Hacked . | . . . . Non-combat . | . . . . Combat . | . . . . Robot Hacks Applied . | . . . . Relay Couplers Released . | . . . . Robots Rewired . | . . . . Allies Hacked . | . . . . Hacks Repelled . | . . . . Allies | -11 -10 -10 -9 -------- Run | Scr Mat Min Mat Total Allies . | . . . . Largest Group . | . . . . Highest-Rated Group . | . . . . Highest-Rated Ally . | . . . . Total Orders . | . . . . Ally Attacks . | . . . . Total Damage . | . . . . Kills . | . . . . Allies Corrupted . | . . . . Allies Melted . | . . . . Intel | -11 -10 -10 -9 ------- Run | Scr Mat Min Mat Robot Analysis Total . | . . . . Derelict Logs Recovered 1 | . . 1 . Drone Launches . | . . . . Drone Recoveries . | . . . . Exploration | -11 -10 -10 -9 ------------- Run | Scr Mat Min Mat Turns Passed 1181 | 111 201 514 355 Spaces Moved 714 | 64 96 325 229 Core 392 | 2 . 161 229 Treads . | . . . . Legs 123 | 62 61 . . Wheels . | . . . . Hover 187 | . 23 164 . Flight 12 | . 12 . . Fastest Speed 37 | 50 37 50 50 Average Speed 84 | 117 109 56 105 Slowest Speed 300 | 120 120 120 300 Overloaded Moves . | . . . . Propulsion Burnouts . | . . . . Robots Hopped . | . . . . Cave-ins Triggered . | . . . . Exploration Rate (%) 27 | 3 23 57 26 Regions Visited 3 Branch Regions 1 Pre-discovered Areas . | . . . . Known Exits Taken . | . . . . Unknown Exits Taken 3 | 1 1 1 . Scrap Searched 1 | . . 1 . Spaces Dug . | . . . . Terrain Destroyed . | . . . . Melee . | . . . . Projectile . | . . . . AOE . | . . . . Terrain Rammed . | . . . . Walls Destroyed . | . . . . Machines Disabled . | . . . . Actions | -11 -10 -10 -9 --------- Run | Scr Mat Min Mat Total 1232 | 87 176 641 328 Wait 436 | 7 57 292 80 Move 711 | 63 95 324 229 Hop . | . . . . Pick Up 17 | 6 6 3 2 Fast Attach 1 | 1 . . . Attach 11 | 4 2 1 4 Detach 2 | . 1 . 1 Swap 5 | . 3 1 1 Drop 5 | . 4 1 . Fire 32 | 6 8 12 6 Melee . | . . . . Ram 12 | . . 7 5 Kick . | . . . . Crush . | . . . . Escape Stasis . | . . . . Rewire . | . . . . Trap . | . . . . Miscellaneous . | . . . . Route ------- -11/Scrapyard -10/Materials -10/Mines -9/Materials (discovered 1 exit: [*Mat]) History --------- Turn | Location | Event 22 | -11/Scrapyard | Discovered new exit (range 15) 112 | -11/Scrapyard | Entered Materials 289 | -10/Materials | Discovered new exit (range 11) 304 | -10/Materials | Build established: Mutant 313 | -10/Materials | Entered Mines 389 | -10/Mines | Learned Materials terminal intel 457 | -10/Mines | Excavation squad dispatched 457 | -10/Mines | A large section of the Mines collapsed 707 | -10/Mines | Excavation squad dispatched 822 | -10/Mines | Discovered new exit (range 11) 827 | -10/Mines | Entered Materials 827 | -9/Materials | Evolved 2 slots: Utility x2 828 | -9/Materials | Loaded intel: 12 terminal locations 1043 | -9/Materials | Discovered new exit (range 5) 1148 | -9/Materials | Core integrity fell below 50% 1169 | -9/Materials | Lost 3 parts (1u2w) 1169 | -9/Materials | Core integrity fell below 20% 1182 | -9/Materials | Destroyed by Y-45 Defender with Beam Rifle Last Messages --------------- GOAL=ESCAPE Loading Materials terminal intel (x12)... 00835_ Acquired Particle Cannon. 00852_ Acquired EM Shotgun. 00945_ K-01 Serf collects debris. 00952_ Field Recycling Unit collects Assault Rifle, recycling 12 matter... 01015_ Field Recycling Unit collects Hover Unit, recycling 3 matter... 01043_ EXIT=FOUND 01110_ Broken Lgt. Assault Rifle destroyed. 01135_ Lgt. Assault Rifle destroyed. 01138_ Slammed into Y-45 Defender. 01138_ Weight Redist. System destroyed. 01138_ System corrupted by crushing effect (+3). 01141_ Slammed into Y-45 Defender. 01141_ Destabilizing: Core damaged (-8). 01144_ Slammed into Y-45 Defender. 01156_ O-16 Technician: "IFF HANDSHAKE FAILED. SECURING TERMINAL." 01157_ System corrupted: Energy discharge (-34). 01161_ ALERT: Hostiles spotted, dispatching reinforcements to Terminal M006. Map ----- +----------------------------------------------------+ | ??????# ## #??????????????????? | | ??????# ## *=#??????????????????? | | ??????# # ==#??????????????????? | | ??????# ## #??????????????????? | | ??????# ## ???????????????????? | | ??????# ## ?????????????????????? | | ??????# #?#/#??????????????????????? | | ??????# #?# #??????????? ??????? | | ??????# #?# #?#####????# ?????? | | ??????# #?# ## ????# ??????? | | ??????# #?# ## ????# "?????? | | ??????# #?# ## ????# ?? #? | | ??????# #?# ## ????# "? #? | | ??????# ### ## ????# ""? #? | | ??????# Y # ?????# "" #? | | ??????# # ?????# """ #? | | ??????# sY# ?????# """ #? | | ??????#### # ?????# """ #? | | ?????????# # ?????# " #? | | ?????##### # ?????# #? | | ?????#!! ###+####### #? | | ?????#!! "T" #? | | ?????#!! #? | | ?????#!! #? | | ?????#]] ###+#############+##### | | ?????#]] @ # #???# + | | ?????##### < # """ #???# # | | ?????????# # """"" |#???# """# | | ?????????##### """"" #???# """# | | ?????????????# """"" #???# """# | | ?????????????# """ #???# """# | | ?????????????# ????#???# """# | | ?????????????# ??????????# # | | ?????????????#?"T"????????# # | | ??????????????????????????########## | | ???????????????????????????????????? | | ???????????????????????????????????? | | ???????????????????????????????????? | | ???????????????????????????????????? | | ???????????????????????????????????? | | ???????????????????????????????????? | | ???????????????????????????????????? | | ???????????????????????????????????? | | ???????????????????????????????????? | | ???????????????????????????????????? | | | | | | | | | | | +----------------------------------------------------+ Best States ------------- Heat Dissipation 28 Energy Generation 10 Energy Capacity 500 Matter Stores 300 Matter Capacity 300 Sight Range 16 Terrain Scan Range 16 Terrain Scan Density 10 Additional Mass Support 6 Resistance: KI 20 Resistance: TH 20 Resistance: EX 20 Resistance: EM 20 Resistance: I 20 Resistance: S 20 Resistance: P 20 Evasion (%) 62 Offensive Hacking 10 Item Schematics ----------------- None Robot Schematics ------------------ None Fabricated ------------ Nothing Alien Tech Used ----------------- None Achievements -------------- None Challenges ------------ None Game ------ Seed MetafiberDefenseLaser Manual? 0 Play Time 00:11:58 Cumulative 5.6 hours Start 2022.02.17 @ 18:42:09 End 2022.02.17 @ 18:53:41 Sessions 1 Manual Loads 0 Difficulty Adventurer Special Mode None Game No. 10 Rogue 0 Adventurer 10 Explorer 0 Win Type - Total 0 Types 0/0/0/0/0/0/0/0/0 Lore% 14 Gallery% 9 Achievement% 8 Wizard Run 0 Options --------- ASCII 0 Keyboard 0 Movement Mouse Keybinds 0 Fullscreen 1 Font 16/Proggy Map View 76x50 Tactical HUD 1 Map Filters NONE Filters NONE Steam 1 RUN: cbffe1e1-3a0b-41fc-8566-15414c768998